Workbook

Sheet Panoramica party
B3: Panoramica del party
B6: EVENTO | D6: RIEPILOGO OSPITI | H6: ="RSVP IN SOSPESO: "&RSVPInSospeso -> RSVP IN SOSPESO: 2
B7: 75° compleanno della nonna | D7: PANORAMICA DELLE RISPOSTE | F7: COSTO PER OSPITE | H7: IMPORTO BUDGET
D8: Ospiti confermati | E8: Totale confermati | F8: Cibo | G8: Altro | H8: Totale
B9: DATA | D9: Adulti | E9: =SUMIF(TavoloOspiti[PARTECIPA?],"=Sì",TavoloOspiti[ADULTI]) -> 26 | F9: =TavoloCibo[[#Totals],[COSTO PER ADULTO]] -> € 12.69 | G9: =CostiEssenzialiPerOspite -> € 18.70 | H9: =(RiepilogoPartecipanti[[#This Row],[Cibo]]+RiepilogoPartecipanti[[#This Row],[Altro]])*TotaleAdulti -> € 816.03
B10: 2011-06-14 | D10: Bambini | E10: =SUMIF(TavoloOspiti[PARTECIPA?],"=Sì",TavoloOspiti[BAMBINI]) -> 20 | F10: =TavoloCibo[[#Totals],[COSTO PER BAMBINO]] -> € 7.25 | G10: =CostiEssenzialiPerOspite -> € 18.70 | H10: =(RiepilogoPartecipanti[[#This Row],[Cibo]]+RiepilogoPartecipanti[[#This Row],[Altro]])*TotaleBambini -> € 518.97
D11: Totale | E11: =SUBTOTAL(109,RiepilogoPartecipanti[Totale confermati]) -> 46 | F11: ="Media. "&TEXT(SUBTOTAL(101,RiepilogoPartecipanti[Cibo]),"€ #,##0.00") -> Media. € 9,97149 | G11: ="Media. "&TEXT(SUBTOTAL(101,RiepilogoPartecipanti[Altro]),"€ #,##0.00") -> Media. € 18,69565 | H11: =SUBTOTAL(109,RiepilogoPartecipanti[Totale]) -> € 1,335.00
B12: ORA
B13: Dalle 14.00 alle 16.00
B15: LOCALITÀ | D15: RIEPILOGO BUDGET
B16: Casa di zia Daniela | D16: ARTICOLO | E16: NUMERO | F16: IMPORTO BUDGET | G16: COSTO TOTALE | H16: DIFFERENZA
D17: Cibi e bevande | E17: =COUNTA(TavoloCibo[CIBI E BEVANDE - ARTICOLI]) -> 18 | F17: € 500.00 | G17: =TavoloCibo[[#Totals],[COSTO TOTALE]] -> € 475.00 | H17: =PanoramicaBudget[[#This Row],[IMPORTO BUDGET]]-PanoramicaBudget[[#This Row],[COSTO TOTALE]] -> € 25.00
D18: =IntestazioneTavolo1 -> Arredi e forniture | E18: =COUNTA(BudgetTavolo1[Arredi e forniture]) -> 7 | F18: € 400.00 | G18: =BudgetTavolo1[[#Totals],[Costo]] -> € 400.00 | H18: =PanoramicaBudget[[#This Row],[IMPORTO BUDGET]]-PanoramicaBudget[[#This Row],[COSTO TOTALE]] -> € 0.00
D19: =IntestazioneTavolo2 -> Decorazioni | E19: =COUNTA(BudgetTavolo2[Decorazioni]) -> 4 | F19: € 150.00 | G19: =BudgetTavolo2[[#Totals],[Costo]] -> € 175.00 | H19: =PanoramicaBudget[[#This Row],[IMPORTO BUDGET]]-PanoramicaBudget[[#This Row],[COSTO TOTALE]] -> € 25.00
D20: =IntestazioneTavolo3 -> Altro | E20: =COUNTA(BudgetTavolo3[Altro]) -> 4 | F20: € 300.00 | G20: =BudgetTavolo3[[#Totals],[Costo]] -> € 285.00 | H20: =PanoramicaBudget[[#This Row],[IMPORTO BUDGET]]-PanoramicaBudget[[#This Row],[COSTO TOTALE]] -> € 15.00
D21: Totale | E21: =SUBTOTAL(109,PanoramicaBudget[NUMERO]) -> 33 | F21: =SUBTOTAL(109,PanoramicaBudget[IMPORTO BUDGET]) -> € 1,350.00 | G21: =SUBTOTAL(109,PanoramicaBudget[COSTO TOTALE]) -> € 1,335.00 | H21: =PanoramicaBudget[[#Totals],[IMPORTO BUDGET]]-PanoramicaBudget[[#Totals],[COSTO TOTALE]] -> € 15.00

Sheet Elenco ospiti
B3: Lista degli ospiti
B7: NOME | C7: INDIRIZZO | D7: CITTÀ | E7: PROVINCIA | F7: CAP | G7: TELEFONO | H7: POSTA ELETTRONICA | I7: PARTECIPA? | J7: BAMBINI | K7: ADULTI | L7: TOTALE
B8: Famiglia 1 | C8: Indirizzo 1 | D8: Città 1 | E8: Provincia 1 | F8: CAP 1 | G8: Telefono 1 | H8: Posta elettronica1 | I8: No | J8: 2 | K8: 2 | L8: =SUM(TavoloOspiti[[#This Row],[BAMBINI]:[ADULTI]]) -> 4
B9: Famiglia 2 | C9: Indirizzo 2 | D9: Città 2 | E9: Provincia 2 | F9: CAP 2 | G9: Telefono 2 | H9: Posta elettronica2 | I9: Sì | J9: 1 | K9: 1 | L9: =SUM(TavoloOspiti[[#This Row],[BAMBINI]:[ADULTI]]) -> 2
B10: Famiglia 3 | C10: Indirizzo 3 | D10: Città 3 | E10: Provincia 3 | F10: CAP 3 | G10: Telefono 3 | H10: Posta elettronica3 | I10: Sì | J10: 3 | K10: 3 | L10: =SUM(TavoloOspiti[[#This Row],[BAMBINI]:[ADULTI]]) -> 6
B11: Famiglia 4 | C11: Indirizzo 4 | D11: Città 4 | E11: Provincia 4 | F11: CAP 4 | G11: Telefono 4 | H11: Posta elettronica4 | K11: 2 | L11: =SUM(TavoloOspiti[[#This Row],[BAMBINI]:[ADULTI]]) -> 2
B12: Famiglia 5 | C12: Indirizzo 5 | D12: Città 5 | E12: Provincia 5 | F12: CAP 5 | G12: Telefono 5 | H12: Posta elettronica5 | I12: Sì | J12: 4 | K12: 3 | L12: =SUM(TavoloOspiti[[#This Row],[BAMBINI]:[ADULTI]]) -> 7
B13: Famiglia 6 | C13: Indirizzo 6 | D13: Città 6 | E13: Provincia 6 | F13: CAP 6 | G13: Telefono 6 | H13: Posta elettronica6 | I13: Sì | J13: 2 | K13: 2 | L13: =SUM(TavoloOspiti[[#This Row],[BAMBINI]:[ADULTI]]) -> 4
B14: Famiglia 7 | C14: Indirizzo 7 | D14: Città 7 | E14: Provincia 7 | F14: CAP 7 | G14: Telefono 7 | H14: Posta elettronica7 | I14: Sì | J14: 1 | K14: 4 | L14: =SUM(TavoloOspiti[[#This Row],[BAMBINI]:[ADULTI]]) -> 5
B15: Famiglia 8 | C15: Indirizzo 8 | D15: Città 8 | E15: Provincia 8 | F15: CAP 8 | G15: Telefono 8 | H15: Posta elettronica8 | I15: No | J15: 5 | K15: 3 | L15: =SUM(TavoloOspiti[[#This Row],[BAMBINI]:[ADULTI]]) -> 8
B16: Famiglia 9 | C16: Indirizzo 9 | D16: Città 9 | E16: Provincia 9 | F16: CAP 9 | G16: Telefono 9 | H16: Posta elettronica9 | I16: Sì | J16: 3 | K16: 2 | L16: =SUM(TavoloOspiti[[#This Row],[BAMBINI]:[ADULTI]]) -> 5
B17: Famiglia 10 | C17: Indirizzo 10 | D17: Città 10 | E17: Provincia 10 | F17: CAP 10 | G17: Telefono 10 | H17: Posta elettronica10 | I17: Sì | K17: 4 | L17: =SUM(TavoloOspiti[[#This Row],[BAMBINI]:[ADULTI]]) -> 4
B18: Famiglia 11 | C18: Indirizzo 11 | D18: Città 11 | E18: Provincia 11 | F18: CAP 11 | G18: Telefono 11 | H18: Posta elettronica11 | I18: Sì | J18: 3 | K18: 5 | L18: =SUM(TavoloOspiti[[#This Row],[BAMBINI]:[ADULTI]]) -> 8
B19: Famiglia 12 | C19: Indirizzo 12 | D19: Città 12 | E19: Provincia 12 | F19: CAP 12 | G19: Telefono 12 | H19: Posta elettronica12 | I19: No | J19: 2 | K19: 3 | L19: =SUM(TavoloOspiti[[#This Row],[BAMBINI]:[ADULTI]]) -> 5
B20: Famiglia 13 | C20: Indirizzo 13 | D20: Città 13 | E20: Provincia 13 | F20: CAP 13 | G20: Telefono 13 | H20: Posta elettronica13 | I20: Sì | J20: 3 | K20: 2 | L20: =SUM(TavoloOspiti[[#This Row],[BAMBINI]:[ADULTI]]) -> 5
B21: Famiglia 14 | C21: Indirizzo 14 | D21: Città 14 | E21: Provincia 14 | F21: CAP 14 | G21: Telefono 14 | H21: Posta elettronica14 | I21: No | K21: 1 | L21: =SUM(TavoloOspiti[[#This Row],[BAMBINI]:[ADULTI]]) -> 1
B22: Famiglia 15 | C22: Indirizzo 15 | D22: Città 15 | E22: Provincia 15 | F22: CAP 15 | G22: Telefono 15 | H22: Posta elettronica15 | K22: 2 | L22: =SUM(TavoloOspiti[[#This Row],[BAMBINI]:[ADULTI]]) -> 2

Sheet Cibo e Bevande
B3: Cibi e bevande
B5: Immettere il costo e le porzioni stimate per calcolare automaticamente i pezzi e il costo per porzione in base al totale dei partecipanti
B6: CIBI E BEVANDE - ARTICOLI | C6: COSTO TOTALE | D6: PORZIONE PER BAMBINO | E6: PORZIONE PER ADULTO | F6: TOTALE PORZIONI | G6: COSTO PER PORZIONE | H6: COSTO PER BAMBINO | I6: COSTO PER ADULTO | J6: NOTA
B7: Bibite | C7: € 15.00 | D7: 0.5 | E7: 2 | F7: =(TavoloCibo[[#This Row],[PORZIONE PER BAMBINO]]*TotaleBambini)+(TavoloCibo[[#This Row],[PORZIONE PER ADULTO]]*TotaleAdulti) -> 62 | G7: =IFERROR(TavoloCibo[[#This Row],[COSTO TOTALE]]/TavoloCibo[[#This Row],[TOTALE PORZIONI]],"") -> € 0.24 | H7: =IFERROR(TavoloCibo[[#This Row],[COSTO PER PORZIONE]]*TavoloCibo[[#This Row],[PORZIONE PER BAMBINO]],"") -> € 0.12 | I7: =IFERROR(TavoloCibo[[#This Row],[COSTO PER PORZIONE]]*TavoloCibo[[#This Row],[PORZIONE PER ADULTO]],"") -> € 0.48 | J7: Bottiglie da 2 lt
B8: Lattine di succo | C8: € 15.00 | D8: 2 | E8: 0 | F8: =(TavoloCibo[[#This Row],[PORZIONE PER BAMBINO]]*TotaleBambini)+(TavoloCibo[[#This Row],[PORZIONE PER ADULTO]]*TotaleAdulti) -> 40 | G8: =IFERROR(TavoloCibo[[#This Row],[COSTO TOTALE]]/TavoloCibo[[#This Row],[TOTALE PORZIONI]],"") -> € 0.38 | H8: =IFERROR(TavoloCibo[[#This Row],[COSTO PER PORZIONE]]*TavoloCibo[[#This Row],[PORZIONE PER BAMBINO]],"") -> € 0.75 | I8: =IFERROR(TavoloCibo[[#This Row],[COSTO PER PORZIONE]]*TavoloCibo[[#This Row],[PORZIONE PER ADULTO]],"") -> € 0.00 | J8: Mela e uva bianca
B9: Vino | C9: € 50.00 | D9: 0 | E9: 2 | F9: =(TavoloCibo[[#This Row],[PORZIONE PER BAMBINO]]*TotaleBambini)+(TavoloCibo[[#This Row],[PORZIONE PER ADULTO]]*TotaleAdulti) -> 52 | G9: =IFERROR(TavoloCibo[[#This Row],[COSTO TOTALE]]/TavoloCibo[[#This Row],[TOTALE PORZIONI]],"") -> € 0.96 | H9: =IFERROR(TavoloCibo[[#This Row],[COSTO PER PORZIONE]]*TavoloCibo[[#This Row],[PORZIONE PER BAMBINO]],"") -> € 0.00 | I9: =IFERROR(TavoloCibo[[#This Row],[COSTO PER PORZIONE]]*TavoloCibo[[#This Row],[PORZIONE PER ADULTO]],"") -> € 1.92
B10: Torta | C10: € 75.00 | D10: 1 | E10: 1 | F10: =(TavoloCibo[[#This Row],[PORZIONE PER BAMBINO]]*TotaleBambini)+(TavoloCibo[[#This Row],[PORZIONE PER ADULTO]]*TotaleAdulti) -> 46 | G10: =IFERROR(TavoloCibo[[#This Row],[COSTO TOTALE]]/TavoloCibo[[#This Row],[TOTALE PORZIONI]],"") -> € 1.63 | H10: =IFERROR(TavoloCibo[[#This Row],[COSTO PER PORZIONE]]*TavoloCibo[[#This Row],[PORZIONE PER BAMBINO]],"") -> € 1.63 | I10: =IFERROR(TavoloCibo[[#This Row],[COSTO PER PORZIONE]]*TavoloCibo[[#This Row],[PORZIONE PER ADULTO]],"") -> € 1.63 | J10: Ordinare dal fornaio locale
B11: Gelato | C11: € 20.00 | D11: 1 | E11: 1.5 | F11: =(TavoloCibo[[#This Row],[PORZIONE PER BAMBINO]]*TotaleBambini)+(TavoloCibo[[#This Row],[PORZIONE PER ADULTO]]*TotaleAdulti) -> 59 | G11: =IFERROR(TavoloCibo[[#This Row],[COSTO TOTALE]]/TavoloCibo[[#This Row],[TOTALE PORZIONI]],"") -> € 0.34 | H11: =IFERROR(TavoloCibo[[#This Row],[COSTO PER PORZIONE]]*TavoloCibo[[#This Row],[PORZIONE PER BAMBINO]],"") -> € 0.34 | I11: =IFERROR(TavoloCibo[[#This Row],[COSTO PER PORZIONE]]*TavoloCibo[[#This Row],[PORZIONE PER ADULTO]],"") -> € 0.51
B12: Budini | C12: € 15.00 | D12: 1 | E12: 0 | F12: =(TavoloCibo[[#This Row],[PORZIONE PER BAMBINO]]*TotaleBambini)+(TavoloCibo[[#This Row],[PORZIONE PER ADULTO]]*TotaleAdulti) -> 20 | G12: =IFERROR(TavoloCibo[[#This Row],[COSTO TOTALE]]/TavoloCibo[[#This Row],[TOTALE PORZIONI]],"") -> € 0.75 | H12: =IFERROR(TavoloCibo[[#This Row],[COSTO PER PORZIONE]]*TavoloCibo[[#This Row],[PORZIONE PER BAMBINO]],"") -> € 0.75 | I12: =IFERROR(TavoloCibo[[#This Row],[COSTO PER PORZIONE]]*TavoloCibo[[#This Row],[PORZIONE PER ADULTO]],"") -> € 0.00 | J12: Acquistare vasetti pronti: vaniglia e cioccolato
B13: Funghi stufati | C13: € 32.00 | D13: 1 | E13: 2 | F13: =(TavoloCibo[[#This Row],[PORZIONE PER BAMBINO]]*TotaleBambini)+(TavoloCibo[[#This Row],[PORZIONE PER ADULTO]]*TotaleAdulti) -> 72 | G13: =IFERROR(TavoloCibo[[#This Row],[COSTO TOTALE]]/TavoloCibo[[#This Row],[TOTALE PORZIONI]],"") -> € 0.44 | H13: =IFERROR(TavoloCibo[[#This Row],[COSTO PER PORZIONE]]*TavoloCibo[[#This Row],[PORZIONE PER BAMBINO]],"") -> € 0.44 | I13: =IFERROR(TavoloCibo[[#This Row],[COSTO PER PORZIONE]]*TavoloCibo[[#This Row],[PORZIONE PER ADULTO]],"") -> € 0.89 | J13: Funghetti stufati con crema di formaggio e salsiccia
B14: Bruschetta | C14: € 22.00 | D14: 0 | E14: 3 | F14: =(TavoloCibo[[#This Row],[PORZIONE PER BAMBINO]]*TotaleBambini)+(TavoloCibo[[#This Row],[PORZIONE PER ADULTO]]*TotaleAdulti) -> 78 | G14: =IFERROR(TavoloCibo[[#This Row],[COSTO TOTALE]]/TavoloCibo[[#This Row],[TOTALE PORZIONI]],"") -> € 0.28 | H14: =IFERROR(TavoloCibo[[#This Row],[COSTO PER PORZIONE]]*TavoloCibo[[#This Row],[PORZIONE PER BAMBINO]],"") -> € 0.00 | I14: =IFERROR(TavoloCibo[[#This Row],[COSTO PER PORZIONE]]*TavoloCibo[[#This Row],[PORZIONE PER ADULTO]],"") -> € 0.85 | J14: Pomodoro e basilico
B15: Salmone affumicato | C15: € 50.00 | D15: 1 | E15: 2 | F15: =(TavoloCibo[[#This Row],[PORZIONE PER BAMBINO]]*TotaleBambini)+(TavoloCibo[[#This Row],[PORZIONE PER ADULTO]]*TotaleAdulti) -> 72 | G15: =IFERROR(TavoloCibo[[#This Row],[COSTO TOTALE]]/TavoloCibo[[#This Row],[TOTALE PORZIONI]],"") -> € 0.69 | H15: =IFERROR(TavoloCibo[[#This Row],[COSTO PER PORZIONE]]*TavoloCibo[[#This Row],[PORZIONE PER BAMBINO]],"") -> € 0.69 | I15: =IFERROR(TavoloCibo[[#This Row],[COSTO PER PORZIONE]]*TavoloCibo[[#This Row],[PORZIONE PER ADULTO]],"") -> € 1.39
B16: Tartine | C16: € 20.00 | D16: 1 | E16: 2 | F16: =(TavoloCibo[[#This Row],[PORZIONE PER BAMBINO]]*TotaleBambini)+(TavoloCibo[[#This Row],[PORZIONE PER ADULTO]]*TotaleAdulti) -> 72 | G16: =IFERROR(TavoloCibo[[#This Row],[COSTO TOTALE]]/TavoloCibo[[#This Row],[TOTALE PORZIONI]],"") -> € 0.28 | H16: =IFERROR(TavoloCibo[[#This Row],[COSTO PER PORZIONE]]*TavoloCibo[[#This Row],[PORZIONE PER BAMBINO]],"") -> € 0.28 | I16: =IFERROR(TavoloCibo[[#This Row],[COSTO PER PORZIONE]]*TavoloCibo[[#This Row],[PORZIONE PER ADULTO]],"") -> € 0.56 | J16: 4 sacchetti - assortiti
B17: Crema di formaggio | C17: € 10.00 | D17: 1 | E17: 2 | F17: =(TavoloCibo[[#This Row],[PORZIONE PER BAMBINO]]*TotaleBambini)+(TavoloCibo[[#This Row],[PORZIONE PER ADULTO]]*TotaleAdulti) -> 72 | G17: =IFERROR(TavoloCibo[[#This Row],[COSTO TOTALE]]/TavoloCibo[[#This Row],[TOTALE PORZIONI]],"") -> € 0.14 | H17: =IFERROR(TavoloCibo[[#This Row],[COSTO PER PORZIONE]]*TavoloCibo[[#This Row],[PORZIONE PER BAMBINO]],"") -> € 0.14 | I17: =IFERROR(TavoloCibo[[#This Row],[COSTO PER PORZIONE]]*TavoloCibo[[#This Row],[PORZIONE PER ADULTO]],"") -> € 0.28 | J17: 2 vaschette grandi
B18: Capperi | C18: € 12.00 | D18: 1 | E18: 2 | F18: =(TavoloCibo[[#This Row],[PORZIONE PER BAMBINO]]*TotaleBambini)+(TavoloCibo[[#This Row],[PORZIONE PER ADULTO]]*TotaleAdulti) -> 72 | G18: =IFERROR(TavoloCibo[[#This Row],[COSTO TOTALE]]/TavoloCibo[[#This Row],[TOTALE PORZIONI]],"") -> € 0.17 | H18: =IFERROR(TavoloCibo[[#This Row],[COSTO PER PORZIONE]]*TavoloCibo[[#This Row],[PORZIONE PER BAMBINO]],"") -> € 0.17 | I18: =IFERROR(TavoloCibo[[#This Row],[COSTO PER PORZIONE]]*TavoloCibo[[#This Row],[PORZIONE PER ADULTO]],"") -> € 0.33 | J18: 3 vasetti
B19: Ali di pollo | C19: € 45.00 | D19: 2 | E19: 4 | F19: =(TavoloCibo[[#This Row],[PORZIONE PER BAMBINO]]*TotaleBambini)+(TavoloCibo[[#This Row],[PORZIONE PER ADULTO]]*TotaleAdulti) -> 144 | G19: =IFERROR(TavoloCibo[[#This Row],[COSTO TOTALE]]/TavoloCibo[[#This Row],[TOTALE PORZIONI]],"") -> € 0.31 | H19: =IFERROR(TavoloCibo[[#This Row],[COSTO PER PORZIONE]]*TavoloCibo[[#This Row],[PORZIONE PER BAMBINO]],"") -> € 0.63 | I19: =IFERROR(TavoloCibo[[#This Row],[COSTO PER PORZIONE]]*TavoloCibo[[#This Row],[PORZIONE PER ADULTO]],"") -> € 1.25 | J19: Acquistare dal negozio locale
B20: Zuppa di ceci | C20: € 10.00 | D20: 4 | E20: 6 | F20: =(TavoloCibo[[#This Row],[PORZIONE PER BAMBINO]]*TotaleBambini)+(TavoloCibo[[#This Row],[PORZIONE PER ADULTO]]*TotaleAdulti) -> 236 | G20: =IFERROR(TavoloCibo[[#This Row],[COSTO TOTALE]]/TavoloCibo[[#This Row],[TOTALE PORZIONI]],"") -> € 0.04 | H20: =IFERROR(TavoloCibo[[#This Row],[COSTO PER PORZIONE]]*TavoloCibo[[#This Row],[PORZIONE PER BAMBINO]],"") -> € 0.17 | I20: =IFERROR(TavoloCibo[[#This Row],[COSTO PER PORZIONE]]*TavoloCibo[[#This Row],[PORZIONE PER ADULTO]],"") -> € 0.25 | J20: Preparare la sera prima
B21: Patatine al formaggio | C21: € 14.00 | D21: 4 | E21: 6 | F21: =(TavoloCibo[[#This Row],[PORZIONE PER BAMBINO]]*TotaleBambini)+(TavoloCibo[[#This Row],[PORZIONE PER ADULTO]]*TotaleAdulti) -> 236 | G21: =IFERROR(TavoloCibo[[#This Row],[COSTO TOTALE]]/TavoloCibo[[#This Row],[TOTALE PORZIONI]],"") -> € 0.06 | H21: =IFERROR(TavoloCibo[[#This Row],[COSTO PER PORZIONE]]*TavoloCibo[[#This Row],[PORZIONE PER BAMBINO]],"") -> € 0.24 | I21: =IFERROR(TavoloCibo[[#This Row],[COSTO PER PORZIONE]]*TavoloCibo[[#This Row],[PORZIONE PER ADULTO]],"") -> € 0.36 | J21: Preparare la sera prima
B22: Verdure assortite | C22: € 30.00 | D22: 4 | E22: 10 | F22: =(TavoloCibo[[#This Row],[PORZIONE PER BAMBINO]]*TotaleBambini)+(TavoloCibo[[#This Row],[PORZIONE PER ADULTO]]*TotaleAdulti) -> 340 | G22: =IFERROR(TavoloCibo[[#This Row],[COSTO TOTALE]]/TavoloCibo[[#This Row],[TOTALE PORZIONI]],"") -> € 0.09 | H22: =IFERROR(TavoloCibo[[#This Row],[COSTO PER PORZIONE]]*TavoloCibo[[#This Row],[PORZIONE PER BAMBINO]],"") -> € 0.35 | I22: =IFERROR(TavoloCibo[[#This Row],[COSTO PER PORZIONE]]*TavoloCibo[[#This Row],[PORZIONE PER ADULTO]],"") -> € 0.88 | J22: Bastoncini di carote, sedano, broccoletti, cavolfiore, peperoni rossi e verdi
B23: Palline di formaggio | C23: € 15.00 | D23: 5 | E23: 10 | F23: =(TavoloCibo[[#This Row],[PORZIONE PER BAMBINO]]*TotaleBambini)+(TavoloCibo[[#This Row],[PORZIONE PER ADULTO]]*TotaleAdulti) -> 360 | G23: =IFERROR(TavoloCibo[[#This Row],[COSTO TOTALE]]/TavoloCibo[[#This Row],[TOTALE PORZIONI]],"") -> € 0.04 | H23: =IFERROR(TavoloCibo[[#This Row],[COSTO PER PORZIONE]]*TavoloCibo[[#This Row],[PORZIONE PER BAMBINO]],"") -> € 0.21 | I23: =IFERROR(TavoloCibo[[#This Row],[COSTO PER PORZIONE]]*TavoloCibo[[#This Row],[PORZIONE PER ADULTO]],"") -> € 0.42 | J23: Assortimento: crema di formaggio, formaggio piccante con noci
B24: Cracker | C24: € 25.00 | D24: 5 | E24: 10 | F24: =(TavoloCibo[[#This Row],[PORZIONE PER BAMBINO]]*TotaleBambini)+(TavoloCibo[[#This Row],[PORZIONE PER ADULTO]]*TotaleAdulti) -> 360 | G24: =IFERROR(TavoloCibo[[#This Row],[COSTO TOTALE]]/TavoloCibo[[#This Row],[TOTALE PORZIONI]],"") -> € 0.07 | H24: =IFERROR(TavoloCibo[[#This Row],[COSTO PER PORZIONE]]*TavoloCibo[[#This Row],[PORZIONE PER BAMBINO]],"") -> € 0.35 | I24: =IFERROR(TavoloCibo[[#This Row],[COSTO PER PORZIONE]]*TavoloCibo[[#This Row],[PORZIONE PER ADULTO]],"") -> € 0.69 | J24: Assortiti
B25: Totale | C25: =SUBTOTAL(109,TavoloCibo[COSTO TOTALE]) -> € 475.00 | D25: =SUBTOTAL(109,TavoloCibo[PORZIONE PER BAMBINO]) -> 34.5 | E25: =SUBTOTAL(109,TavoloCibo[PORZIONE PER ADULTO]) -> 65.5 | F25: =SUBTOTAL(109,TavoloCibo[TOTALE PORZIONI]) -> 2393 | G25: =SUBTOTAL(109,TavoloCibo[COSTO PER PORZIONE]) -> € 6.92 | H25: =SUBTOTAL(109,TavoloCibo[COSTO PER BAMBINO]) -> € 7.25 | I25: =SUBTOTAL(109,TavoloCibo[COSTO PER ADULTO]) -> € 12.69

Sheet Altri Elementi Essenziali
B3: Altri elementi essenziali
B6: Arredi e forniture | C6: Costo | D6: Acquistato | E6: Nota
B7: Affitto salone | C7: € 250.00 | D7: Sì
B8: Tovaglie | C8: € 30.00 | D8: Sì | E8: Affitto
B9: Tavoli e sedie | C9: € 0.00 | E9: Incluso nell'affitto del salone
B10: Tovaglioli per bevande | C10: € 25.00
B11: Tovaglioli per cena | C11: € 20.00 | E11: Affitto
B12: Servizio da tavola | C12: € 50.00 | E12: Affitto
B13: Bicchieri | C13: € 25.00 | E13: Affitto
B14: Totale | C14: =SUBTOTAL(109,BudgetTavolo1[Costo]) -> € 400.00
B17: Decorazioni | C17: Costo | D17: Acquistato | E17: Nota
B18: Palloncini | C18: € 25.00
B19: Bombola di elio | C19: € 50.00 | E19: Affitto
B20: Centro tavola | C20: € 100.00 | D20: Sì | E20: 10 totale
B21: Vasi di vetro | C21: € 0.00 | E21: In prestito da Sandra
B22: Totale | C22: =SUBTOTAL(109,BudgetTavolo2[Costo]) -> € 175.00
B25: Altro | C25: Costo | D25: Acquistato | E25: Nota
B26: Inviti | C26: € 50.00 | D26: Sì
B27: Affrancatura | C27: € 60.00 | D27: Sì
B28: Fotografo | C28: € 125.00 | E28: 2 ore (14.00 - 16.00)
B29: Regalini per il party | C29: € 50.00
B30: Totale | C30: =SUBTOTAL(109,BudgetTavolo3[Costo]) -> € 285.00

Sheet Griglia dispos. posti a sedere
A1: Disposizione posti a sedere
AH35: *1 quadratino = circa 0,01 metri quadrati
A36: Nota | T36: =" Totale ospiti confermati: "&OspitiConfermati -> Totale ospiti confermati: 46
T37: È possibile utilizzare uno qualsiasi dei seguenti allestimenti dei tavoli:
U38: =ROUNDUP(OspitiConfermati/6,0)&" tavoli rotondi 1 metro (6 posti)" -> 8 tavoli rotondi 1 metro (6 posti)
U39: =ROUNDUP(OspitiConfermati/8,0) &" tavoli rotondi 1,5 metri (8 posti)" -> 6 tavoli rotondi 1,5 metri (8 posti)
U40: =ROUNDUP(OspitiConfermati/10,0)&" tavoli rotondi 2 metri (10 posti)" -> 5 tavoli rotondi 2 metri (10 posti)
U41: =ROUNDUP(OspitiConfermati/6,0)& " tavoli rettangolari 70 cm x 2 metri (6 posti)" -> 8 tavoli rettangolari 70 cm x 2 metri (6 posti)
U42: =ROUNDUP(OspitiConfermati/8,0)&" tavoli rettangolari 70 cm x 2,5 metri (8 posti)" -> 6 tavoli rettangolari 70 cm x 2,5 metri (8 posti)
T43: (Spazio ottimale tra i tavoli: 1 metro circa)
